bitfinex/quotes_ETHUSD_20220226
["timestamp","ask_amount","ask_price","bid_price","bid_amount"]
[1645882658637,0.00489457,2772.8,2772.7,5.3544]
[1645882659534,0.00489457,2772.8,2772.7,5.4985]
[1645882659734,0.9021,2773.8,2772.7,5.4985]
[1645882660069,0.00489453,2772.9,2772.7,5.4985]
[1645882660269,0.00489453,2772.9,2772.8,1.10089656]
[1645882660971,0.9021,2773.8,2772.8,1.10089656]
[1645882661178,0.00489444,2773.0,2772.8,1.10089656]
[1645882661574,0.00489444,2773.0,2772.8,12.55339656]
[1645882661975,4.3204,2774.1,2772.8,12.55339656]
[1645882662175,4.37162,2774.1,2772.8,12.55339656]
[1645882662374,4.3204,2774.1,2772.8,12.55339656]
[1645882663474,4.3204,2774.1,2772.9,0.1441]
[1645882663937,4.3204,2774.1,2772.9,15.0966]
[1645882664544,4.3204,2774.1,2772.9,14.9525]
[1645882665742,1.0,2774.1,2772.9,14.9525]
[1645882665944,0.00504521,2773.6,2772.9,14.9525]
[1645882666941,0.87004,2774.3,2772.9,14.9525]
[1645882667140,0.00504543,2773.4,2772.9,14.9525]
[1645882667980,0.87004,2774.3,2772.9,14.9525]
[1645882668384,0.00488036,2773.3,2772.9,14.9525]
[1645882668782,0.81171471,2774.3,2773.1,11.09]
[1645882668980,0.81171471,2774.3,2773.2,3.5]
[1645882669182,0.81171471,2774.3,2773.2,14.59]
[1645882670179,0.76067471,2774.3,2773.2,14.59]
[1645882670383,0.76067471,2774.3,2773.1,11.4525]
[1645882670580,0.76067471,2774.3,2773.3,3.5]
[1645882670781,0.00269316,2773.9,2773.3,3.5]
[1645882671622,0.95286,2774.4,2773.3,3.5]
[1645882671822,0.00519356,2773.7,2773.3,3.5]
[1645882672621,0.00519356,2773.7,2773.4,1.13916856]
[1645882672924,1.20191,2774.4,2773.4,1.13916856]
[1645882673123,0.00519365,2773.6,2773.4,1.13916856]
[1645882674123,0.90191,2774.4,2773.4,1.13916856]
[1645882674322,0.00519365,2773.6,2773.4,1.13916856]
[1645882675178,0.90191,2774.4,2773.4,1.13916856]
[1645882675377,0.90191,2774.4,2773.5,3.5]
[1645882675587,0.00519365,2773.6,2773.5,3.5]
[1645882675778,0.00519365,2773.6,2773.4,1.13916856]
[1645882676376,0.95322,2774.4,2773.4,1.13916856]
[1645882676780,0.00519365,2773.6,2773.4,1.13916856]
[1645882677579,1.25322,2774.4,2773.4,1.13916856]
[1645882677879,0.00519365,2773.6,2773.4,1.13916856]
[1645882678579,0.00519365,2773.6,2773.4,4.73916856]
[1645882678829,1.25322,2774.4,2773.4,4.73916856]
[1645882679024,0.00519365,2773.6,2773.4,4.73916856]
[1645882680027,1.25322,2774.4,2773.4,4.73916856]
[1645882680233,0.00519365,2773.6,2773.5,3.5]
[1645882680431,0.00519365,2773.6,2773.4,4.73916856]
[1645882681242,1.25322,2774.4,2773.5,1.34975801]
[1645882681243,0.68199594,2773.8,2773.5,1.34975801]
[1645882681533,0.00519365,2773.6,2773.5,1.34975801]
[1645882681733,0.00519365,2773.6,2773.5,4.84975801]
[1645882682134,0.63785232,2773.6,2773.5,4.84975801]
[1645882682337,0.63785232,2773.6,2773.5,1.34975801]
[1645882682616,0.63265867,2773.6,2773.5,4.84975801]
[1645882682909,0.00519361,2773.7,2773.5,4.84975801]
[1645882683112,0.00519361,2773.7,2773.6,3.5]
[1645882683315,0.63781858,2773.7,2773.5,1.34975801]
[1645882683517,0.63262497,2773.6,2773.5,12.43975801]
[1645882683716,0.63262497,2773.6,2773.5,15.93975801]
[1645882683913,0.68199594,2773.9,2773.5,15.93975801]
[1645882683914,0.00519351,2773.8,2773.5,15.93975801]
[1645882684115,0.63262497,2773.7,2773.5,15.93975801]
[1645882684315,0.63262497,2773.7,2773.6,3.5]
[1645882684916,0.68199594,2774.0,2773.7,17.09]
[1645882685120,0.68199594,2774.4,2773.9,11.4525]
[1645882685320,0.68199594,2774.4,2774.1,11.4525]
[1645882685518,1.22213441,2774.5,2774.3,11.09]
[1645882685717,0.54013847,2774.5,2774.3,11.09]
[1645882686424,0.54013847,2774.5,2774.4,1.27427221]
[1645882686829,0.54013847,2774.5,2774.4,15.86427221]
[1645882687025,0.54013847,2774.5,2774.4,12.36427221]
[1645882687632,0.90932792,2774.9,2774.4,12.36427221]
[1645882687633,0.68199594,2774.9,2774.6,11.4525]
[1645882687832,1.36756016,2775.5,2774.7,14.59]
[1645882687833,0.68199594,2775.0,2774.7,14.59]
[1645882688035,0.68199594,2775.0,2774.7,3.5]
[1645882688330,0.68199594,2775.0,2774.6,11.09]
[1645882688533,0.68199594,2774.9,2774.7,3.5]
[1645882688734,0.68199594,2775.0,2774.6,11.09]
[1645882688931,0.68199594,2775.0,2774.9,1.26114468]
[1645882690180,0.68199594,2775.0,2774.6,14.69]
[1645882690382,0.00518891,2775.1,2774.6,14.69]
[1645882690383,0.68718485,2775.1,2774.6,14.69]
[1645882690580,0.68199594,2775.0,2774.7,14.59]
[1645882690780,0.68199594,2775.2,2774.7,14.59]
[1645882691183,0.90932792,2775.5,2774.8,0.3625]
[1645882691184,0.005189,2775.0,2774.8,0.3625]
[1645882691383,8.9e-05,2775.0,2774.9,14.9525]
[1645882691783,8.9e-05,2775.0,2774.9,15.2525]
[1645882692183,0.68199594,2775.5,2774.9,15.3966]
[1645882692384,0.68199594,2775.5,2775.3,11.09]
[1645882692583,0.68199594,2775.6,2775.4,14.59]
[1645882694426,0.68199594,2775.6,2775.3,11.09]
[1645882694625,0.68199594,2775.6,2775.3,14.59]
[1645882694826,0.68718436,2775.6,2775.3,14.59]
[1645882695727,0.68199594,2775.6,2775.3,14.59]
[1645882695928,0.68684708,2775.6,2775.3,14.59]
[1645882696129,0.68684708,2775.6,2775.2,1.30682933]
[1645882696334,0.68684708,2775.6,2775.3,3.5]
[1645882696531,0.68199594,2775.5,2775.2,1.30682933]
[1645882696931,0.68199594,2775.6,2775.2,1.30682933]
[1645882697129,0.00485123,2775.5,2775.0,0.1441]
[1645882697335,0.68199594,2775.3,2774.6,1.2325]
[1645882697574,0.68199594,2775.3,2774.5,5.02]
[1645882697776,0.68199594,2775.2,2774.5,5.02]
[1645882697979,0.68199594,2775.1,2774.0,1.3171]
[1645882698176,0.68199594,2775.1,2774.4,1.17101948]
[1645882698381,0.00485146,2775.1,2774.4,1.17101948]
[1645882698585,0.00485146,2775.1,2774.0,1.173]
[1645882698586,0.68199594,2775.0,2774.1,0.1441]
[1645882698784,4.18199594,2774.9,2774.0,1.173]
[1645882699585,0.68199594,2774.9,2774.0,1.173]
[1645882700290,0.68199594,2774.6,2774.0,1.173]
[1645882700492,0.68199594,2774.6,2773.8,5.47245012]
[1645882700692,0.68199594,2774.6,2773.8,0.17525012]
[1645882701335,0.68199594,2774.6,2773.7,3.79655472]
[1645882701541,0.68199594,2774.5,2773.7,3.79655472]
[1645882701738,0.68199594,2774.5,2773.6,2.8694]
[1645882702143,0.68199594,2774.5,2773.8,3.6]
[1645882702939,0.68199594,2774.6,2773.8,3.6]
[1645882703338,0.68199594,2774.7,2773.8,3.6]
[1645882703739,0.68199594,2774.7,2774.1,1.34179495]
[1645882704739,0.68199594,2774.7,2773.8,14.69]
[1645882704943,0.68199594,2774.7,2773.8,3.6]
[1645882705184,0.68199594,2774.5,2773.8,3.6]
[1645882705385,0.68199594,2774.4,2773.8,3.6]
[1645882705585,0.56154173,2774.3,2773.8,3.6]
[1645882705785,0.56154173,2774.2,2773.8,3.6]
[1645882705983,0.56154173,2774.1,2773.8,3.6]
[1645882706183,0.56154173,2774.0,2773.8,3.6]
[1645882706382,0.68199594,2774.5,2773.8,3.6]
[1645882706383,0.56154173,2773.9,2773.8,3.6]
[1645882706787,5.26253767,2774.2,2773.8,3.6]
[1645882706984,1.24353767,2774.1,2773.8,3.6]
[1645882707184,4.019,2774.0,2773.8,3.6]
[1645882707384,0.56154173,2773.9,2773.8,3.6]
[1645882708387,1.76253767,2774.0,2773.8,3.6]
[1645882708591,1.24353767,2773.9,2773.8,3.6]
[1645882708830,4.74353767,2773.9,2773.8,3.6]
[1645882709230,5.88054173,2773.9,2773.8,3.6]
[1645882709437,5.93244173,2773.9,2773.8,3.6]
[1645882710737,6.83456173,2773.9,2773.8,3.6]
[1645882710935,7.4627974,2773.9,2773.8,3.6]
[1645882714684,7.4627974,2773.9,2773.8,2.96]
[1645882715286,3.6627974,2773.9,2773.8,2.96]
[1645882715486,0.56154173,2773.9,2773.8,2.96]
[1645882716089,0.56154173,2774.0,2773.8,2.96]
[1645882716325,0.519,2774.2,2773.8,2.96]
[1645882719931,1.95486582,2774.5,2773.8,2.96]
[1645882720195,4.95598,2774.8,2774.0,1.33589862]
[1645882720196,4.5729,2774.8,2774.0,1.33589862]
[1645882720388,2.4208,2774.8,2773.8,2.96]
[1645882720588,2.77261,2774.8,2773.8,2.96]
[1645882720786,1.87081,2774.8,2773.8,2.96]
[1645882721289,0.87081,2774.8,2773.8,2.96]
[1645882721489,0.90188,2774.5,2773.9,1.3107489]
[1645882722089,0.87081,2774.8,2773.9,1.3107489]
[1645882723919,1.77262,2774.8,2773.9,1.3107489]
[1645882724119,1.72081,2774.8,2773.9,1.3107489]
[1645882725924,1.72081,2774.8,2773.8,2.96]
[1645882726126,0.00356828,2774.7,2773.8,2.96]
[1645882727429,0.00356828,2774.7,2774.0,1.11015686]
[1645882727675,1.72437828,2774.8,2774.0,1.11015686]
[1645882728674,1.62778605,2774.8,2774.0,1.11015686]
[1645882729676,1.67660605,2774.8,2774.0,1.11015686]
[1645882730681,1.62778605,2774.8,2774.0,1.11015686]
[1645882731346,1.62778605,2774.8,2773.8,2.96]
[1645882731347,0.90188,2774.5,2773.8,2.96]
[1645882731634,4.019,2774.4,2773.8,2.96]
[1645882731834,0.05254,2774.3,2773.8,2.96]
[1645882732034,0.519,2774.2,2773.8,2.96]
[1645882732233,0.819,2774.2,2773.8,2.96]
[1645882732640,1.721,2774.2,2773.8,2.96]
[1645882735181,0.819,2774.2,2773.8,2.96]
[1645882735780,0.519,2774.2,2773.8,2.96]
[1645882736180,0.54527757,2774.4,2773.8,4.37745518]
[1645882737985,0.54527757,2774.4,2773.8,2.96]
[1645882738281,1.44718757,2774.4,2773.8,2.956436]
[1645882739326,0.519,2774.3,2773.8,2.956436]
[1645882741133,0.90986725,2774.0,2773.8,1.33099921]
[1645882741336,0.56020437,2773.9,2773.8,1.33099921]
[1645882743388,1.47007162,2773.9,2773.8,1.33099921]
[1645882743989,0.56020437,2773.9,2773.8,1.33099921]
[1645882744191,1.36480087,2774.1,2773.8,1.33099921]
[1645882744192,0.519,2774.0,2773.8,1.33099921]
[1645882744390,0.56020437,2773.9,2773.8,1.33099921]
[1645882746529,0.68350354,2773.9,2773.8,1.33099921]
[1645882747329,0.56020437,2773.9,2773.8,1.33099921]
[1645882749335,1.24387102,2773.9,2773.8,1.33099921]
[1645882750078,1.24387102,2773.9,2773.8,2.52854815]
[1645882750276,1.24387102,2773.9,2773.8,1.33099921]
[1645882751978,0.56020437,2773.9,2773.8,1.33099921]
[1645882752580,0.56020437,2773.9,2773.8,2.30950161]
[1645882755945,0.68366665,2774.3,2773.9,4.5]
[1645882756141,0.68366665,2774.4,2773.9,4.5]
[1645882757977,0.68366665,2774.4,2773.9,4.8625]
[1645882763027,0.68366665,2774.4,2773.9,0.3625]
[1645882763228,0.00356828,2774.6,2774.2,1.36891764]
[1645882763229,0.68366665,2774.5,2774.2,1.36891764]
[1645882763427,0.68366665,2774.5,2774.2,0.43114063]
[1645882768094,0.96593432,2774.8,2774.2,0.43114063]
[1645882768095,0.68366665,2774.7,2774.2,0.43114063]
[1645882768295,0.68366665,2774.9,2774.3,11.4525]
[1645882768492,0.00356828,2775.0,2774.3,11.7525]
[1645882768493,0.00356828,2774.8,2774.3,11.7525]
[1645882768692,0.00356828,2775.0,2774.3,11.7525]
[1645882768953,0.68723493,2775.1,2774.4,0.1441]
[1645882769152,0.68366665,2775.1,2774.4,0.1441]
[1645882769447,0.00459645,2775.1,2774.4,0.1441]
[1645882769647,0.00459645,2775.1,2774.5,11.09]
[1645882769846,0.00459645,2775.1,2774.5,11.39]
[1645882770251,0.00356828,2775.3,2774.5,11.7525]
[1645882770453,0.00356828,2775.6,2774.8,7.5]
[1645882770653,0.00356828,2775.4,2774.9,16.4525]
[1645882770855,0.00356828,2775.6,2774.9,16.5966]
[1645882771050,0.00356828,2775.8,2774.9,16.5966]
[1645882771454,0.91135604,2776.0,2775.8,1.30514205]
[1645882771652,0.00356828,2775.9,2775.8,1.30514205]
[1645882771855,0.91135604,2776.1,2775.8,1.30514205]
[1645882772886,0.91595553,2776.1,2775.8,1.30514205]
[1645882773285,0.00459949,2776.1,2775.8,1.30514205]
[1645882773889,0.91135604,2776.2,2775.2,6.1866]
[1645882774094,0.00816777,2776.1,2775.2,6.0427]
[1645882774292,0.91135604,2775.9,2775.2,6.0427]
[1645882774491,0.91135604,2775.9,2775.2,1.2035]
[1645882774492,3.5,2775.8,2775.2,1.2035]
[1645882774691,0.91135604,2775.7,2775.2,1.2035]
[1645882774894,0.91135604,2775.7,2774.6,4.7587]
[1645882774895,1.43035604,2775.7,2774.6,4.7587]
[1645882775091,1.43392432,2775.7,2774.7,1.26003312]
[1645882775292,1.43392432,2775.7,2774.9,3.6]
[1645882775293,0.91595589,2775.6,2774.9,3.6]
[1645882775894,0.47443849,2775.5,2774.9,3.6]
[1645882776098,0.519,2775.5,2774.9,3.6]
[1645882776334,0.90163,2775.4,2774.9,3.6]
[1645882776534,0.51711798,2775.3,2774.9,3.6]
[1645882777734,0.00459628,2775.2,2774.9,3.6]
[1645882777933,0.52359628,2775.2,2774.9,3.6]
[1645882778537,0.819,2775.2,2774.9,3.6]
[1645882778937,4.32359624,2775.2,2774.9,3.6]
[1645882779343,5.32359624,2775.2,2774.9,3.6]
[1645882779539,1.82359624,2775.2,2774.9,3.6]
[1645882779741,0.82359624,2775.2,2774.9,3.6]
[1645882779941,0.819,2775.2,2774.9,3.6]
[1645882780189,0.8235965,2775.2,2774.9,3.6]
[1645882781089,1.36785497,2775.2,2774.9,3.6]
[1645882781289,3.5,2775.1,2774.9,3.6]
[1645882781492,0.519,2775.0,2774.9,3.6]
[1645882781689,4.06863,2775.0,2774.9,3.6]
[1645882781893,4.36863,2775.0,2774.9,3.6]
[1645882782089,5.36863,2775.0,2774.9,3.6]
[1645882782293,1.0,2775.8,2775.2,5.5]
[1645882782491,1.0,2776.5,2775.7,0.01263696]
[1645882782690,4.33638993,2777.2,2775.7,0.01263696]
[1645882782691,1.08940993,2777.2,2775.7,0.01263696]
[1645882782894,1.08940993,2777.2,2775.8,11.7529]
[1645882782895,0.18828993,2777.2,2775.8,11.7529]
[1645882783091,0.18828993,2777.2,2775.8,19.21260598]
[1645882783289,0.01837001,2777.6,2775.9,3.5]
[1645882783495,1.03565254,2778.0,2776.0,0.1439]
[1645882783689,1.03565254,2778.0,2775.9,4.019]
[1645882783690,11.09,2777.8,2775.9,4.019]
[1645882783931,0.901,2777.5,2776.6,1.31744503]
[1645882784132,0.901,2777.5,2776.6,1.5e-07]
[1645882784731,0.901,2777.5,2775.9,4.019]
[1645882784936,11.991,2777.5,2775.8,1.349]
[1645882785137,11.991,2777.5,2775.5,4.63073]
[1645882785138,11.09,2777.1,2775.5,2.8289]
[1645882785337,1.20121,2776.8,2775.5,2.8289]
[1645882785738,1.20121,2776.8,2775.9,1.24534233]
[1645882785939,0.3,2776.8,2775.5,6.3289]
[1645882786141,0.3,2776.8,2775.5,2.8289]
[1645882786340,2.3,2777.0,2775.5,3.5]
[1645882786638,1.3,2777.0,2775.9,3.6]
[1645882786839,2.20113,2777.0,2775.9,3.6]
[1645882787237,0.00519064,2776.6,2775.9,3.6]
[1645882788282,14.83121104,2777.0,2775.9,3.6]
[1645882788481,0.90122,2776.7,2775.9,3.6]
[1645882788885,1.20477292,2776.7,2775.9,3.6]
[1645882789687,0.00267888,2776.4,2775.9,3.6]
[1645882790687,2.10621292,2776.7,2775.9,3.6]
[1645882790889,0.00267888,2776.3,2775.9,3.6]
[1645882791729,1.20133,2776.4,2775.9,3.6]
[1645882792130,0.00519449,2776.2,2775.9,3.6]
[1645882792931,1.20133,2776.4,2775.9,3.6]
[1645882793334,0.00519453,2776.2,2775.9,3.6]
[1645882794333,1.20133,2776.4,2775.9,3.6]
[1645882794535,0.00519453,2776.2,2775.9,3.6]
[1645882795488,1.20133,2776.4,2775.9,3.6]
[1645882795689,0.00519453,2776.2,2775.9,3.6]
[1645882796589,1.20133,2776.4,2775.9,3.6]
[1645882796989,0.00509713,2776.2,2775.9,3.6]
[1645882797792,0.3,2776.4,2775.9,3.6]
[1645882797993,0.30355292,2776.6,2775.9,3.6]
[1645882798193,0.00509713,2776.2,2775.9,3.6]
[1645882799035,5.30750292,2776.7,2775.9,3.6]
[1645882799233,0.00509713,2776.2,2775.9,3.6]
[1645882800240,0.00355292,2776.7,2776.0,3.5]
[1645882800441,0.00486714,2776.2,2776.1,3.5]
[1645882800643,0.00486714,2776.2,2775.9,3.6]
[1645882800644,0.47912364,2776.2,2775.9,1.97590729]
[1645882800840,0.00486714,2776.2,2775.9,1.97590729]
[1645882801042,0.4742565,2776.1,2775.9,1.97590729]
[1645882801341,0.00486714,2776.2,2775.9,1.97590729]
[1645882801546,0.44401497,2776.1,2775.9,1.97590729]
[1645882801741,0.44401497,2776.0,2775.9,1.97590729]
[1645882802994,0.00486722,2776.1,2775.9,1.97590729]
[1645882803193,0.44401497,2776.0,2775.9,1.97590729]
[1645882804194,0.00488274,2776.1,2775.9,1.97590729]
[1645882804398,0.44401497,2776.0,2775.9,1.97590729]
[1645882805597,0.44401497,2776.0,2775.9,3.269959]
[1645882806436,0.6829339,2776.4,2775.9,3.269959]
[1645882806638,0.00488274,2776.1,2775.9,3.269959]
[1645882806836,0.44401497,2776.0,2775.9,3.269959]
[1645882807943,0.44401497,2776.0,2775.9,1.97590729]
[1645882809042,0.0048817,2776.1,2775.9,1.97590729]
[1645882809241,0.44401497,2776.0,2775.9,1.97590729]
[1645882810089,0.68426268,2776.1,2775.9,1.97590729]
[1645882810292,0.44401497,2776.0,2775.9,1.97590729]
[1645882810686,0.68426268,2776.1,2775.9,1.97590729]
[1645882810887,1.12339595,2776.0,2775.9,1.97590729]
[1645882811287,0.67938098,2776.0,2775.9,1.97590729]
[1645882811489,1.12339595,2776.0,2775.9,1.97590729]
[1645882811691,0.00488173,2776.1,2775.9,1.97590729]
[1645882811692,0.91072303,2776.1,2775.9,1.97590729]
[1645882811890,0.44401497,2776.0,2775.9,1.97590729]
[1645882812491,0.44401497,2776.0,2775.9,0.40652231]
[1645882812492,11.39,2776.0,2775.9,0.40652231]
[1645882812695,11.39,2776.0,2775.3,0.25]
[1645882812696,7.5,2775.9,2775.3,0.25]
[1645882812895,11.99769772,2775.6,2774.3,4.01202447]
[1645882813092,0.68078679,2775.2,2774.3,4.01202447]
[1645882813293,0.68078679,2775.1,2774.3,4.01202447]
[1645882813493,1.12480176,2775.1,2774.3,0.02442447]
[1645882813693,0.44401497,2775.0,2774.2,4.9333]
[1645882813949,0.44401497,2774.9,2774.4,1.33509121]
[1645882814146,0.68078679,2775.1,2774.4,1.33509121]
[1645882814147,0.44401497,2774.8,2774.4,1.33509121]
[1645882814348,0.44401497,2774.7,2774.4,1.33509121]
[1645882814546,0.44401497,2774.6,2774.4,1.33509121]
[1645882814745,0.68078679,2775.1,2774.4,1.33509121]
[1645882814746,0.44401497,2774.5,2774.4,1.33509121]
[1645882815551,0.44401497,2774.5,2774.3,0.0048836]
[1645882815750,0.44401497,2774.4,2774.3,0.0048836]
[1645882815951,0.44401497,2774.4,2774.1,7.45]
[1645882816151,1.22099761,2775.1,2774.3,0.00488348]
[1645882816152,0.68078679,2775.0,2774.3,0.00488348]
[1645882816351,0.54021082,2775.1,2774.3,0.00488348]
[1645882816352,0.68078679,2774.8,2774.3,0.00488348]
[1645882817154,0.68078679,2774.8,2774.1,7.50298747]
[1645882817358,1.09687368,2774.9,2774.3,0.00479275]
[1645882817587,0.41608689,2774.8,2774.3,0.00479275]
[1645882817785,0.41608689,2774.7,2774.3,0.00479275]
[1645882817985,0.41608689,2774.6,2774.3,0.00479275]
[1645882818189,0.41608689,2774.5,2774.3,0.00479275]
[1645882818388,0.41608689,2774.5,2774.2,3.5]
[1645882818687,0.98078679,2775.2,2774.3,0.00479271]
[1645882818888,0.41579734,2775.1,2774.3,0.00479271]
[1645882819290,0.41579734,2775.1,2774.6,1.13081723]
[1645882820696,0.41579734,2775.1,2774.2,3.5]
[1645882820890,0.41579734,2775.1,2774.1,7.50298747]
[1645882821091,0.41579734,2775.1,2774.3,0.02441956]
[1645882821332,0.00488207,2775.3,2774.3,0.02441956]
[1645882821333,0.41579734,2775.0,2774.3,0.02441956]
[1645882821631,0.41579734,2774.9,2774.3,0.02441956]
[1645882821834,0.00488207,2775.3,2774.5,0.3625]
[1645882821835,0.41579734,2774.8,2774.5,0.3625]
[1645882822035,0.41579734,2774.7,2774.5,0.3625]
[1645882822235,0.00488493,2775.3,2774.5,0.3625]
[1645882822436,0.40418377,2775.2,2774.5,0.3625]
[1645882822637,0.40418377,2775.2,2774.5,3.9625]
[1645882822837,0.40418377,2775.2,2774.9,1.21709063]
[1645882823439,0.40418377,2775.1,2774.9,1.21709063]
[1645882823638,0.40418377,2775.0,2774.9,1.21709063]
[1645882824138,0.00488512,2775.3,2774.9,1.21709063]
[1645882824139,0.40418377,2775.2,2774.9,1.21709063]
[1645882824339,0.68078679,2775.4,2774.9,1.21709063]
[1645882824340,0.40418377,2775.0,2774.9,1.21709063]
[1645882824537,0.00488522,2775.3,2774.9,1.21709063]
[1645882824738,0.40418377,2775.2,2774.9,1.21709063]
[1645882825790,0.40418377,2775.1,2774.9,1.21709063]
[1645882825988,0.40418377,2775.0,2774.9,1.21709063]
[1645882826387,0.40418377,2775.2,2774.9,1.21709063]
[1645882826588,0.00488204,2775.3,2774.9,1.21709063]
[1645882826589,0.40418377,2775.1,2774.9,1.21709063]
[1645882826788,0.40418377,2775.0,2774.9,1.21709063]
[1645882826990,0.00488204,2775.3,2774.9,1.21709063]
[1645882827190,0.40418377,2775.2,2774.5,3.9625]
[1645882827392,0.40418377,2775.2,2774.6,1.09512756]
[1645882827593,0.40418377,2775.2,2774.5,3.6]
[1645882827890,0.40418377,2775.2,2774.6,0.519]
[1645882828092,0.40418377,2775.1,2774.7,1.1209267]
[1645882828295,0.40418377,2775.0,2774.7,1.6399267]
[1645882828489,0.40418377,2774.9,2774.8,0.3625]
[1645882828691,0.40418377,2775.2,2774.8,0.3625]
[1645882829343,0.0048822,2775.3,2775.2,1.19943097]
[1645882829543,0.40957324,2775.3,2775.2,1.19943097]
[1645882830343,0.40469104,2775.3,2775.2,1.19943097]
[1645882830546,0.00488236,2775.4,2775.2,1.19943097]
[1645882830745,0.40469104,2775.3,2775.2,1.19943097]
[1645882831844,0.00488236,2775.4,2775.2,1.19943097]
[1645882832046,0.40469104,2775.3,2775.2,1.19943097]
[1645882832248,0.40469104,2775.3,2775.2,1.56193097]
[1645882832893,0.00355292,2775.7,2775.2,1.56193097]
[1645882833100,0.00488234,2775.4,2775.2,12.65193097]
[1645882833300,0.40469104,2775.3,2775.2,13.17093097]
[1645882833701,0.40469104,2775.3,2775.2,16.77093097]
[1645882834101,0.00355292,2775.8,2775.2,16.77093097]
[1645882834400,0.00488234,2775.4,2775.2,16.77093097]
[1645882834601,0.40469104,2775.3,2775.2,16.77093097]
[1645882835501,0.00488234,2775.4,2775.3,11.04780896]
[1645882836107,0.00488234,2775.4,2775.3,16.05330896]
[1645882836333,0.00355292,2776.6,2775.3,17.23850896]
[1645882836532,0.00488226,2775.5,2775.3,17.23850896]
[1645882837134,0.00488226,2775.5,2775.3,6.5532]
[1645882837539,0.00355292,2776.6,2776.1,1.10463411]
[1645882837739,1.0,2776.7,2775.3,6.8032]
[1645882837943,0.00488222,2775.5,2775.3,6.8032]
[1645882838141,0.00488222,2775.5,2775.3,17.6432]
[1645882838743,0.00355292,2776.7,2775.3,17.6432]
[1645882838941,0.00355292,2776.7,2776.0,1.31074168]
[1645882839142,0.90116,2776.8,2775.4,0.25]
[1645882839340,0.00355292,2776.7,2775.4,0.25]
[1645882840184,0.00355292,2776.7,2775.8,1.25433188]
[1645882840185,0.00488169,2776.2,2775.8,1.25433188]
[1645882840584,0.00488169,2776.2,2776.0,2.5]
[1645882840988,0.00488169,2776.2,2775.8,1.25433188]
[1645882841186,0.00355292,2776.7,2775.8,1.25433188]
[1645882841389,0.00488165,2776.2,2775.4,0.25]
[1645882841685,0.00488165,2776.2,2775.3,6.1907]
[1645882842387,0.00355292,2776.7,2775.7,1.37296187]
[1645882842587,0.00267864,2775.9,2775.7,1.37296187]
[1645882843589,0.00355292,2776.7,2775.7,1.37296187]
[1645882843837,0.00488516,2775.9,2775.7,1.37296187]
[1645882844841,0.00355292,2776.7,2775.7,1.37296187]
[1645882845036,0.00131374,2775.9,2775.7,1.37296187]
[1645882846049,0.00355292,2776.7,2775.7,1.37296187]
[1645882846449,0.00355292,2776.7,2775.3,6.1907]
[1645882847451,0.00355292,2776.7,2775.4,11.9715]
[1645882847889,0.00355292,2776.9,2775.4,11.9715]
[1645882848289,0.00355292,2776.9,2775.4,0.8815]
[1645882848490,0.00355292,2776.9,2775.4,12.87251]
[1645882848692,0.00355292,2776.9,2775.4,2.6835182]
[1645882849296,0.00355292,2776.9,2775.4,3.5845882]
[1645882849595,0.00355292,2776.9,2775.5,11.4525]
[1645882849794,0.00495831,2776.3,2775.7,11.09]
[1645882850197,0.00495831,2776.3,2775.5,0.3625]
[1645882850394,0.00495831,2776.3,2775.6,1.27027685]
[1645882850598,0.00495831,2776.3,2775.7,1.6104]
[1645882850795,0.00355292,2776.9,2775.7,1.6104]
[1645882851196,0.00497009,2776.1,2775.7,1.6104]
[1645882851439,0.00497009,2776.1,2775.7,1.2479]
[1645882851841,0.00497009,2776.1,2775.7,12.7004]
[1645882852039,0.00355292,2776.9,2776.3,1.0755819]
[1645882852240,0.12180321,2777.1,2775.7,2.2479]
[1645882852742,0.12180321,2777.1,2775.7,1.2479]
[1645882853238,0.12180321,2777.1,2776.0,1.13173099]
[1645882853440,0.00496972,2776.5,2775.7,1.2479]
[1645882854444,4.50355292,2776.9,2775.7,1.2479]
[1645882854640,0.00487899,2776.2,2775.7,1.2479]
[1645882854839,0.00487899,2776.2,2775.8,1.15983258]
[1645882855484,0.00355292,2776.6,2775.8,1.15983258]
[1645882855687,0.90122,2776.7,2775.8,1.15983258]
[1645882855887,0.00487907,2776.1,2775.8,1.15983258]
[1645882856689,0.00355292,2776.6,2775.8,1.15983258]
[1645882856888,6.3023797,2777.0,2775.8,1.15983258]
[1645882856889,0.00355292,2776.8,2775.8,1.15983258]
[1645882857093,0.00487911,2776.1,2775.8,1.15983258]
[1645882857889,0.00355292,2776.9,2775.8,1.15983258]
[1645882858091,0.00355292,2776.9,2775.8,1.30373258]
[1645882858289,0.00488525,2776.1,2775.8,1.30373258]
[1645882859135,0.00355292,2776.9,2775.8,1.30373258]
[1645882859534,0.00488525,2776.1,2775.8,1.30373258]
[1645882859748,0.00488525,2776.1,2775.8,1.15983258]
[1645882860341,0.00355292,2776.9,2775.8,1.15983258]
[1645882860741,0.00488525,2776.1,2775.8,1.15983258]
[1645882860945,8.525e-05,2776.1,2775.7,2.3543]
[1645882861148,8.525e-05,2776.1,2775.9,11.609]
[1645882861344,8.525e-05,2776.1,2776.0,0.6629]
[1645882861549,0.00355292,2776.7,2775.9,0.519]
[1645882861745,0.68372223,2776.8,2776.0,0.1439]
[1645882861946,0.68016931,2776.8,2776.0,0.1439]
[1645882862146,0.68016931,2776.8,2776.7,1.38729857]
[1645882862349,1.07659802,2776.8,2776.7,0.65930664]
[1645882862790,1.07659802,2776.8,2776.1,1.1346]
[1645882862988,0.39642871,2776.7,2776.1,1.1346]
[1645882863288,0.39642871,2776.6,2776.0,11.5964]
[1645882863488,0.39642871,2776.5,2776.0,11.5964]
[1645882863689,0.39642871,2776.4,2776.1,1.14950871]
[1645882863891,0.90689241,2777.2,2776.2,0.1439]
[1645882863892,0.34642871,2776.3,2776.2,0.1439]
[1645882864093,0.68372223,2777.0,2776.2,0.1439]
[1645882864094,0.00355292,2776.8,2776.2,0.1439]
[1645882864293,0.68016931,2777.0,2776.2,0.1439]
[1645882864693,0.68016931,2777.0,2776.1,1.14950871]
[1645882864694,0.68016931,2777.0,2776.1,2.19423871]
[1645882865295,0.68016931,2777.0,2776.1,1.29340871]
[1645882865495,0.00355292,2777.2,2776.1,1.29340871]
[1645882865496,0.00519737,2776.7,2776.1,1.29340871]